fUSD/lending_fUSD_20250811
["ID","MTS","AMOUNT","RATE_DAILY","PERIOD"]
[378571547,1754914259808,-400.0,0.00016897,2]
[378571548,1754914259817,-437.02,0.00016897,2]
[378571549,1754914259827,-400.0,0.00016897,2]
[378571550,1754914259837,-400.0,0.00016897,2]
[378571551,1754914259847,-253.38760257,0.00016897,2]
[378571552,1754914259856,-400.0,0.00016897,2]
[378571553,1754914259866,-465.98739112,0.00016897,2]
[378571554,1754914259875,-400.0,0.00016897,2]
[378571555,1754914259884,-608.48,0.00016897,2]
[378571556,1754914259894,-598.16,0.00016897,2]
[378571557,1754914259904,-400.0,0.00016897,2]
[378571558,1754914259913,-402.87837058,0.00016897,2]
[378571559,1754914259923,-449.01730378,0.00016897,2]
[378571560,1754914259933,-400.0,0.00016897,2]
[378571561,1754914259943,-400.0,0.00016897,2]
[378571562,1754914259952,-400.0,0.00016897,2]
[378571563,1754914259961,-400.0,0.00016897,2]
[378571564,1754914259971,-367.6,0.00016897,2]
[378571565,1754914259981,-400.0,0.00016897,2]
[378571566,1754914259990,-178.94678342,0.00016897,2]
[378571567,1754914260000,-542.97,0.00016897,2]
[378571568,1754914260009,-766.63,0.00016897,2]
[378571569,1754914260019,-524.39,0.00016897,2]
[378571570,1754914260029,-448.38,0.00016897,2]
[378571571,1754914260039,-168.3229881,0.00016897,2]
[378571572,1754914260049,-540.09,0.00016897,2]
[378571573,1754914260060,-400.0,0.00016897,2]
[378571574,1754914260070,-448.02,0.00016897,2]
[378571575,1754914260080,-400.0,0.00016897,2]
[378571576,1754914260091,-584.4,0.00016897,2]
[378571577,1754914260101,-431.09,0.00016897,2]
[378571578,1754914260111,-400.0,0.00016897,2]
[378571579,1754914260120,-400.0,0.00016897,2]
[378571580,1754914260130,-694.52,0.00016897,2]
[378571581,1754914260140,-662.12,0.00016897,2]
[378571582,1754914260150,-798.31,0.00016897,2]
[378571583,1754914260159,-486.2711922,0.00016897,2]
[378571584,1754914260169,-402.85200437,0.00016897,2]
[378571585,1754914260180,-400.0,0.00016897,2]
[378571586,1754914260189,-400.0,0.00016897,2]
[378571587,1754914260200,-469.6,0.00016897,2]
[378571588,1754914260209,-792.62,0.00016897,2]
[378571589,1754914260219,-717.44,0.00016897,2]
[378571590,1754914260228,-574.19,0.00016897,2]
[378571591,1754914260237,-741.68,0.00016897,2]
[378571592,1754914260247,-400.0,0.00016897,2]
[378571593,1754914260256,-400.0,0.00016897,2]
[378571594,1754914260353,-622.17,0.00016897,2]
[378571595,1754914260362,-547.84375546,0.00016897,2]
[378571596,1754914260372,-851.42,0.00016897,2]
[378571597,1754914260381,-683.06,0.00016897,2]
[378571598,1754914260390,-400.0,0.00016897,2]
[378571599,1754914260400,-753.24,0.00016897,2]
[378571600,1754914260409,-400.0,0.00016897,2]
[378571601,1754914260418,-400.0,0.00016897,2]
[378571602,1754914260427,-400.0,0.00016897,2]
[378571603,1754914260437,-695.33,0.00016897,2]
[378571604,1754914260446,-400.0,0.00016897,2]
[378571605,1754914260456,-403.05461782,0.00016897,2]
[378571606,1754914260465,-591.99,0.00016897,2]
[378571607,1754914260474,-400.0,0.00016897,2]
[378571608,1754914260484,-400.0,0.00016897,2]
[378571609,1754914260494,-416.29222856,0.00016897,2]
[378571610,1754914260503,-400.0,0.00016897,2]
[378571611,1754914260513,-400.0,0.00016897,2]
[378571612,1754914260522,-400.0,0.00016897,2]
[378571613,1754914260531,-400.0,0.00016897,2]
[378571614,1754914260541,-400.0,0.00016897,2]
[378571615,1754914260550,-400.0,0.00016897,2]
[378571616,1754914260560,-400.0,0.00016897,2]
[378571617,1754914260573,-739.09,0.00016897,2]
[378571618,1754914260584,-878.04,0.00016897,2]
[378571619,1754914260594,-400.0,0.00016897,2]
[378571620,1754914260603,-400.0,0.00016897,2]
[378571621,1754914260613,-548.59,0.00016897,2]
[378571622,1754914260626,-181.51780823,0.00016897,2]
[378571623,1754914260635,-1105.3,0.00016897,2]
[378571624,1754914260644,-673.93,0.00016897,2]
[378571625,1754914260654,-400.0,0.00016897,2]
[378571626,1754914260665,-173.95854876,0.00016897,2]
[378571627,1754914260675,-473.25,0.00016897,2]
[378571628,1754914260685,-400.0,0.00016897,2]
[378571629,1754914260694,-1202.64,0.00016897,2]
[378571630,1754914260703,-400.0,0.00016897,2]
[378571631,1754914260712,-400.0,0.00016897,2]
[378571632,1754914260721,-2057.57,0.00016897,2]
[378571633,1754914260730,-400.0,0.00016897,2]
[378571634,1754914260739,-400.0,0.00016897,2]
[378571635,1754914260749,-400.0,0.00016897,2]
[378571636,1754914260758,-154.62244131,0.00016897,2]
[378571637,1754914260768,-481.98,0.00016897,2]
[378571638,1754914260777,-487.99,0.00016897,2]
[378571639,1754914260787,-400.0,0.00016897,2]
[378571640,1754914260796,-751.95,0.00016897,2]
[378571641,1754914260805,-719.7,0.00016897,2]
[378571642,1754914260814,-400.0,0.00016897,2]
[378571643,1754914260824,-2950.08,0.00016897,2]
[378571644,1754914260834,-400.0,0.00016897,2]
[378571645,1754914260843,-469.13,0.00016897,2]
[378571646,1754914260852,-413.58,0.00016897,2]
[378571647,1754914260861,-400.0,0.00016897,2]
[378571648,1754914260870,-400.0,0.00016897,2]
[378571649,1754914260880,-400.0,0.00016897,2]
[378571650,1754914260889,-526.49850573,0.00016897,2]
[378571651,1754914260899,-400.0,0.00016897,2]
[378571652,1754914260909,-400.0,0.00016897,2]
[378571653,1754914260919,-8200.12,0.00016897,2]
[378571654,1754914260928,-400.0,0.00016897,2]
[378571655,1754914260937,-400.0,0.00016897,2]
[378571656,1754914260947,-400.0,0.00016897,2]
[378571657,1754914260957,-1263.82,0.00016897,2]
[378571658,1754914260966,-785.97,0.00016897,2]
[378571659,1754914260975,-437.96,0.00016897,2]
[378571660,1754914260984,-400.0,0.00016897,2]
[378571661,1754914260993,-1849.56,0.00016897,2]
[378571662,1754914261003,-400.0,0.00016897,2]
[378571663,1754914261012,-400.0,0.00016897,2]
[378571664,1754914261021,-400.0,0.00016897,2]
[378571665,1754914261031,-400.0,0.00016897,2]
[378571666,1754914261040,-989.98,0.00016897,2]
[378571667,1754914261049,-400.0,0.00016897,2]
[378571668,1754914261059,-3602.01,0.00016897,2]
[378571669,1754914261068,-400.0,0.00016897,2]
[378571670,1754914261078,-738.72,0.00016897,2]
[378571671,1754914261088,-400.0,0.00016897,2]
[378571672,1754914261098,-525.918782,0.00016897,2]
[378571673,1754914261107,-400.0,0.00016897,2]
[378571674,1754914261116,-662.65,0.00016897,2]
[378571675,1754914261126,-563.72,0.00016897,2]
[378571676,1754914261136,-400.0,0.00016897,2]
[378571677,1754914261145,-873.41,0.00016897,2]
[378571678,1754914261154,-400.0,0.00016897,2]
[378571679,1754914261163,-1876.96,0.00016897,2]
[378571680,1754914261173,-400.0,0.00016897,2]
[378571681,1754914261183,-223.679799,0.00016898,2]
[378571682,1754914261192,-704.963611,0.00016898,2]
[378571683,1754914261201,-611.797045,0.00016898,2]
[378571684,1754914261210,-635.609809,0.00016898,2]
[378571685,1754914261220,-611.797045,0.00016898,2]
[378571686,1754914261229,-635.609809,0.00016898,2]
[378571687,1754914261238,-529.317885,0.00016898,2]
[378571688,1754914261247,-324.295891,0.00016898,2]
[378571689,1754914261257,-529.317885,0.00016898,2]
[378571690,1754914261266,-324.295891,0.00016898,2]
[378571691,1754914261275,-1042.76981,0.00016898,2]
[378571692,1754914261285,-1042.76981,0.00016898,2]
[378571693,1754914261294,-500.0,0.00016898,2]
[378571694,1754914261303,-500.0,0.00016898,2]
[378571695,1754914261312,-151.0,0.00016898,2]
[378571696,1754914261322,-151.0,0.00016898,2]
[378571697,1754914261332,-384.82805577,0.00016898,2]
[378571698,1754914261380,-1192.28,0.00016621,2]
[378571699,1754914261391,-15.17194423,0.00016898,2]
[378571700,1754914261400,-400.0,0.00016898,2]
[378571701,1754914261410,-400.0,0.00016898,2]
[378571702,1754914261420,-400.0,0.00016898,2]
[378571703,1754914261430,-400.0,0.00016898,2]
[378571704,1754914261440,-463.2,0.00016898,2]
[378571705,1754914261449,-969.173732,0.00016898,2]
[378571706,1754914261458,-400.0,0.00016898,2]
[378571707,1754914261468,-969.173732,0.00016898,2]
[378571708,1754914261478,-400.0,0.00016898,2]
[378571709,1754914261488,-400.0,0.00016898,2]
[378571710,1754914261498,-524.55,0.00016898,2]
[378571711,1754914261507,-251.026466,0.00016898,2]
[378571712,1754914261517,-251.026466,0.00016898,2]
[378571713,1754914261526,-1415.67,0.00016898,2]
[378571714,1754914261536,-1184.13,0.00016898,2]
[378571715,1754914261546,-904.47,0.00016898,2]
[378571716,1754914261555,-450.49,0.00016898,2]
[378571717,1754914261565,-1168.61,0.00016898,2]
[378571718,1754914261578,-1731.42,0.00016898,2]
[378571719,1754914261589,-400.0,0.00016898,2]
[378571720,1754914261599,-759.91,0.00016898,2]
[378571721,1754914261608,-400.0,0.00016898,2]
[378571722,1754914261619,-168.51,0.00016898,2]
[378571723,1754914261629,-684.35,0.00016898,2]
[378571724,1754914261639,-774.73,0.00016898,2]
[378571725,1754914261648,-560.92,0.00016898,2]
[378571726,1754914261659,-708.31,0.00016898,2]
[378571727,1754914261669,-432.04,0.00016898,2]
[378571728,1754914261679,-400.0,0.00016898,2]
[378571729,1754914261688,-1766.9,0.00016898,2]
[378571730,1754914261697,-1379.87,0.00016898,2]
[378571731,1754914261707,-1021.79,0.00016898,2]
[378571732,1754914261716,-1018.96,0.00016898,2]
[378571733,1754914261725,-1728.17,0.00016898,2]
[378571734,1754914261735,-933.79,0.00016898,2]
[378571735,1754914261744,-839.86,0.00016898,2]
[378571736,1754914261753,-1403.11,0.00016898,2]
[378571737,1754914261763,-1251.12,0.00016898,2]
[378571738,1754914261773,-587.65,0.00016898,2]
[378571739,1754914261782,-1578.06,0.00016898,2]
[378571740,1754914261791,-619.58,0.00016898,2]
[378571741,1754914261800,-1085.75,0.00016898,2]
[378571742,1754914261810,-535.26,0.00016898,2]
[378571743,1754914261819,-1032.04,0.00016898,2]
[378571744,1754914261829,-400.0,0.00016898,2]
[378571745,1754914261839,-400.0,0.00016898,2]
[378571746,1754914261849,-548.35,0.00016898,2]
[378571747,1754914261858,-537.11,0.00016898,2]
[378571748,1754914261867,-646.87,0.00016898,2]
[378571749,1754914261877,-779.14,0.00016898,2]
[378571750,1754914261886,-1173.53,0.00016898,2]
[378571751,1754914261896,-822.39,0.00016898,2]
[378571752,1754914261906,-289.850769,0.00016898,2]
[378571753,1754914261915,-289.850769,0.00016898,2]
[378571754,1754914261926,-913.41,0.00016898,2]
[378571755,1754914261935,-785.04,0.00016898,2]
[378571756,1754914261944,-2806.79,0.00016898,2]
[378571757,1754914261954,-1850.25,0.00016898,2]
[378571758,1754914261965,-1710.67,0.00016898,2]
[378571759,1754914261975,-1484.08,0.00016898,2]
[378571760,1754914261984,-538.53,0.00016898,2]
[378571761,1754914261994,-696.23,0.00016898,2]
[378571762,1754914262003,-2484.69,0.00016898,2]
[378571763,1754914262013,-703.83,0.00016898,2]
[378571764,1754914262022,-400.0,0.00016898,2]
[378571765,1754914262031,-400.0,0.00016898,2]
[378571766,1754914262041,-866.15,0.00016898,2]
[378571767,1754914262050,-1575.42,0.00016898,2]
[378571768,1754914262059,-850.66,0.00016898,2]
[378571769,1754914262079,-500.0,0.00016898,2]
[378571770,1754914262106,-2351.99,0.00016898,2]
[378571771,1754914262132,-400.0,0.00016898,2]
[378571772,1754914262155,-2756.45,0.00016898,2]
[378571773,1754914262177,-833.98,0.00016898,2]
[378571774,1754914262200,-3053.55,0.00016898,2]
[378571775,1754914262222,-869.56,0.00016898,2]
[378571776,1754914262242,-500.0,0.00016898,2]
[378571777,1754914262265,-2421.53,0.00016898,2]
[378571778,1754914262281,-2003.53,0.00016898,2]
[378571779,1754914262291,-572.74,0.00016898,2]
[378571780,1754914262301,-1380.58,0.00016898,2]
[378571781,1754914262310,-2924.0,0.00016898,2]
[378571782,1754914262319,-1441.79,0.00016898,2]
[378571783,1754914262329,-1368.35,0.00016898,2]
[378571784,1754914262339,-1881.89,0.00016898,2]
[378571785,1754914262348,-400.0,0.00016898,2]
[378571786,1754914262358,-1187.38,0.00016898,2]
[378571787,1754914262368,-882.35,0.00016898,2]
[378571788,1754914262377,-1099.27,0.00016898,2]
[378571789,1754914262387,-1774.08,0.00016898,2]
[378571790,1754914262397,-400.0,0.00016898,2]
[378571791,1754914262406,-2563.76,0.00016898,2]
[378571792,1754914262417,-2241.16,0.00016898,2]
[378571793,1754914262427,-503.08,0.00016898,2]
[378571794,1754914262436,-1071.93,0.00016898,2]
[378571795,1754914262446,-1656.38,0.00016898,2]
[378571796,1754914262455,-1763.38,0.00016898,2]
[378571797,1754914262465,-400.0,0.00016898,2]
[378571798,1754914262476,-1550.64,0.00016898,2]
[378571799,1754914262486,-576.73,0.00016898,2]
[378571800,1754914262496,-512.03,0.00016898,2]
[378571801,1754914262505,-223.679799,0.00016899,2]
[378571802,1754914262515,-635.609809,0.00016899,2]
[378571803,1754914262524,-635.609809,0.00016899,2]
[378571804,1754914262533,-324.295891,0.00016899,2]
[378571805,1754914262542,-324.295891,0.00016899,2]
[378571806,1754914262553,-1042.76981,0.00016899,2]
[378571807,1754914262562,-1042.76981,0.00016899,2]
[378571808,1754914262573,-1042.76981,0.00016899,2]
[378571809,1754914262586,-1042.76981,0.00016899,2]
[378571810,1754914262596,-500.0,0.00016899,2]
[378571811,1754914262605,-500.0,0.00016899,2]
[378571812,1754914262614,-151.0,0.00016899,2]
[378571813,1754914262624,-151.0,0.00016899,2]
[378571814,1754914262632,-151.0,0.00016899,2]
[378571815,1754914262642,-215.579342,0.00016899,2]
[378571816,1754914262651,-151.0,0.00016899,2]
[378571817,1754914262660,-151.0,0.00016899,2]
[378571818,1754914262670,-737.24871,0.00016899,2]
[378571819,1754914262679,-737.24871,0.00016899,2]
[378571820,1754914262688,-151.0,0.00016899,2]
[378571821,1754914262696,-197.046147,0.00016899,2]
[378571822,1754914262706,-197.046147,0.00016899,2]
[378571823,1754914262715,-969.173732,0.00016899,2]
[378571824,1754914262724,-969.173732,0.00016899,2]
[378571825,1754914262734,-1127.011797,0.00016899,2]
[378571826,1754914262743,-1127.011797,0.00016899,2]
[378571827,1754914262753,-251.026466,0.00016899,2]
[378571828,1754914262762,-251.026466,0.00016899,2]
[378571829,1754914262771,-251.026466,0.00016899,2]
[378571830,1754914262781,-251.026466,0.00016899,2]
[378571831,1754914262790,-655.21,0.00016899,2]
[378571832,1754914262799,-2283.79,0.00016899,2]
[378571833,1754914262809,-906.79,0.00016899,2]
[378571834,1754914262818,-1460.47,0.00016899,2]
[378571835,1754914262828,-289.850769,0.00016899,2]
[378571836,1754914262839,-289.850769,0.00016899,2]
[378571837,1754914262848,-764.86,0.00016899,2]
[378571838,1754914262858,-999.95,0.00016899,2]
[378571839,1754914262867,-289.850769,0.00016899,2]
[378571840,1754914262877,-289.850769,0.00016899,2]
[378571841,1754914262887,-845.570555,0.00016899,2]
[378571842,1754914262896,-464.09,0.00016899,2]
[378571843,1754914262906,-2558.38,0.00016899,2]
[378571844,1754914262915,-845.570555,0.00016899,2]
[378571845,1754914262925,-2791.77,0.00016899,2]
[378571846,1754914262934,-400.0,0.00016899,2]
[378571847,1754914262944,-1000.0,0.00016899,2]
[378571848,1754914262953,-1432.89,0.00016899,2]
[378571849,1754914262963,-2286.93,0.00016899,2]
[378571850,1754914262972,-2489.08,0.00016899,2]
[378571851,1754914262981,-2183.79,0.00016899,2]
[378571852,1754914262990,-2853.02,0.00016899,2]
[378571853,1754914262999,-7677.66,0.00016899,2]
[378571854,1754914263009,-847.284751,0.00016899,2]
[378571855,1754914263019,-847.284751,0.00016899,2]
[378571856,1754914263028,-1745.96,0.00016899,2]
[378571857,1754914263038,-1100.0,0.000169,6]
[378571858,1754914263048,-704.963611,0.000169,2]
[378571859,1754914263057,-704.963611,0.000169,2]
[378571860,1754914263069,-223.679799,0.000169,2]
[378571861,1754914263080,-161.131278,0.000169,2]
[378571862,1754914263095,-704.963611,0.000169,2]
[378571863,1754914263108,-704.963611,0.000169,2]
[378571864,1754914263119,-161.131278,0.000169,2]
[378571865,1754914263129,-611.797045,0.000169,2]
[378571866,1754914263142,-611.797045,0.000169,2]
[378571867,1754914263152,-635.609809,0.000169,2]
[378571868,1754914263162,-611.797045,0.000169,2]
[378571869,1754914263172,-611.797045,0.000169,2]
[378571870,1754914263182,-635.609809,0.000169,2]
[378571871,1754914263192,-529.317885,0.000169,2]
[378571872,1754914263202,-529.317885,0.000169,2]
[378571873,1754914263212,-529.317885,0.000169,2]
[378571874,1754914263222,-529.317885,0.000169,2]
[378571875,1754914263232,-324.295891,0.000169,2]
[378571876,1754914263242,-324.295891,0.000169,2]
[378571877,1754914263252,-151.0,0.000169,2]
[378571878,1754914263262,-1042.76981,0.000169,2]
[378571879,1754914263271,-1042.76981,0.000169,2]
[378571880,1754914263281,-500.0,0.000169,2]
[378571881,1754914263291,-500.0,0.000169,2]
[378571882,1754914263301,-500.0,0.000169,2]
[378571883,1754914263311,-500.0,0.000169,2]
[378571884,1754914263320,-151.0,0.000169,2]
[378571885,1754914263329,-151.0,0.000169,2]
[378571886,1754914263340,-151.0,0.000169,2]
[378571887,1754914263351,-737.24871,0.000169,2]
[378571888,1754914263360,-737.24871,0.000169,2]
[378571889,1754914263370,-151.0,0.000169,2]
[378571890,1754914263379,-197.046147,0.000169,2]
[378571891,1754914263388,-197.046147,0.000169,2]
[378571892,1754914263398,-969.173732,0.000169,2]
[378571893,1754914263407,-969.173732,0.000169,2]
[378571894,1754914263417,-313.517876,0.000169,2]
[378571895,1754914263426,-313.517876,0.000169,2]
[378571896,1754914263436,-1127.011797,0.000169,2]
[378571897,1754914263446,-1127.011797,0.000169,2]
[378571898,1754914263455,-251.026466,0.000169,2]
[378571899,1754914263465,-251.026466,0.000169,2]
[378571900,1754914263475,-289.850769,0.000169,2]
[378571901,1754914263485,-289.850769,0.000169,2]
[378571902,1754914263495,-845.570555,0.000169,2]
[378571903,1754914263505,-845.570555,0.000169,2]
[378571904,1754914263514,-1943.36,0.000169,2]
[378571905,1754914263524,-1922.24,0.000169,2]
[378571906,1754914263534,-847.284751,0.000169,2]
[378571907,1754914263543,-3053.53,0.000169,2]
[378571908,1754914263555,-847.284751,0.000169,2]
[378571909,1754914263565,-1402.14,0.000169,2]
[378571910,1754914263580,-2832.54,0.000169,2]
[378571911,1754914263590,-704.963611,0.00016901,2]
[378571912,1754914263600,-223.679799,0.00016901,2]
[378571913,1754914263609,-223.679799,0.00016901,2]
[378571914,1754914263619,-161.131278,0.00016901,2]
[378571915,1754914263629,-704.963611,0.00016901,2]
[378571916,1754914263639,-161.131278,0.00016901,2]
[378571917,1754914263649,-611.797045,0.00016901,2]
[378571918,1754914263661,-635.609809,0.00016901,2]
[378571919,1754914263670,-635.609809,0.00016901,2]
[378571920,1754914263680,-611.797045,0.00016901,2]
[378571921,1754914263690,-635.609809,0.00016901,2]
[378571922,1754914263700,-635.609809,0.00016901,2]
[378571923,1754914263709,-529.317885,0.00016901,2]
[378571924,1754914263719,-529.317885,0.00016901,2]
[378571925,1754914263728,-529.317885,0.00016901,2]
[378571926,1754914263738,-324.295891,0.00016901,2]
[378571927,1754914263747,-324.295891,0.00016901,2]
[378571928,1754914263757,-529.317885,0.00016901,2]
[378571929,1754914263767,-324.295891,0.00016901,2]
[378571930,1754914263776,-324.295891,0.00016901,2]
[378571931,1754914263786,-151.0,0.00016901,2]
[378571932,1754914263796,-440.557783,0.00016901,2]
[378571933,1754914263806,-440.557783,0.00016901,2]
[378571934,1754914263816,-1042.76981,0.00016901,2]
[378571935,1754914263826,-1042.76981,0.00016901,2]
[378571936,1754914263836,-500.0,0.00016901,2]
[378571937,1754914263846,-151.0,0.00016901,2]
[378571938,1754914263860,-151.0,0.00016901,2]
[378571939,1754914263870,-151.0,0.00016901,2]
[378571940,1754914263881,-737.24871,0.00016901,2]
[378571941,1754914263892,-737.24871,0.00016901,2]
[378571942,1754914263903,-151.0,0.00016901,2]
[378571943,1754914263913,-197.046147,0.00016901,2]
[378571944,1754914263923,-197.046147,0.00016901,2]
[378571945,1754914263932,-969.173732,0.00016901,2]
[378571946,1754914263942,-969.173732,0.00016901,2]
[378571947,1754914263952,-969.173732,0.00016901,2]
[378571948,1754914263962,-969.173732,0.00016901,2]
[378571949,1754914263972,-313.517876,0.00016901,2]
[378571950,1754914263982,-313.517876,0.00016901,2]
[378571951,1754914263991,-1127.011797,0.00016901,2]
[378571952,1754914264001,-1127.011797,0.00016901,2]
[378571953,1754914264011,-251.026466,0.00016901,2]
[378571954,1754914264020,-251.026466,0.00016901,2]
[378571955,1754914264029,-289.850769,0.00016901,2]
[378571956,1754914264038,-289.850769,0.00016901,2]
[378571957,1754914264048,-845.570555,0.00016901,2]
[378571958,1754914264057,-845.570555,0.00016901,2]
[378571959,1754914264067,-847.284751,0.00016901,2]
[378571960,1754914264076,-847.284751,0.00016901,2]
[378571961,1754914264086,-161.131278,0.00016902,2]
[378571962,1754914264095,-161.131278,0.00016902,2]
[378571963,1754914264105,-151.0,0.00016902,2]
[378571964,1754914264114,-151.0,0.00016902,2]
[378571965,1754914264123,-151.0,0.00016902,2]
[378571966,1754914264132,-737.24871,0.00016902,2]
[378571967,1754914264142,-737.24871,0.00016902,2]
[378571968,1754914264152,-152.550895,0.00016902,2]
[378571969,1754914264161,-197.046147,0.00016902,2]
[378571970,1754914264171,-197.046147,0.00016902,2]
[378571971,1754914264181,-313.517876,0.00016902,2]
[378571972,1754914264192,-313.517876,0.00016902,2]
[378571973,1754914264202,-1127.011797,0.00016902,2]
[378571974,1754914264211,-1127.011797,0.00016902,2]
[378571975,1754914264221,-845.570555,0.00016902,2]
[378571976,1754914264230,-845.570555,0.00016902,2]
[378571977,1754914264240,-847.284751,0.00016902,2]
[378571978,1754914264249,-847.284751,0.00016902,2]
[378571979,1754914264258,-704.963611,0.00016903,2]
[378571980,1754914264268,-704.963611,0.00016903,2]
[378571981,1754914264277,-611.797045,0.00016903,2]
[378571982,1754914264286,-611.797045,0.00016903,2]
[378571983,1754914264295,-1042.76981,0.00016903,2]
[378571984,1754914264304,-1042.76981,0.00016903,2]
[378571985,1754914264313,-151.0,0.00016903,2]
[378571986,1754914264323,-251.026466,0.00016903,2]
[378571987,1754914264332,-251.026466,0.00016903,2]
[378571988,1754914264343,-289.850769,0.00016903,2]
[378571989,1754914264353,-289.850769,0.00016903,2]
[378571990,1754914264361,-161.131278,0.00016921,2]
[378571991,1754914264371,-161.131278,0.00016921,2]
[378571992,1754914264381,-440.557783,0.00016922,2]
[378571993,1754914264390,-440.557783,0.00016922,2]
[378571994,1754914264399,-737.24871,0.00016922,2]
[378571995,1754914264408,-737.24871,0.00016922,2]
[378571996,1754914264417,-197.046147,0.00016922,2]
[378571997,1754914264427,-197.046147,0.00016922,2]
[378571998,1754914264438,-845.570555,0.00016922,2]
[378571999,1754914264447,-845.570555,0.00016922,2]
[378572000,1754914264457,-847.284751,0.00016922,2]
[378572001,1754914264466,-847.284751,0.00016922,2]
[378572002,1754914264475,-151.0,0.00016973,2]
[378572003,1754914264485,-151.0,0.00016973,2]
[378572004,1754914264494,-1127.011797,0.00016973,2]
[378572005,1754914264504,-1127.011797,0.00016973,2]
[378572006,1754914264513,-529.317885,0.00016977,2]
[378572007,1754914264522,-529.317885,0.00016977,2]
[378572008,1754914264532,-223.679799,0.00016982,2]
[378572009,1754914264541,-1000.0,0.00017,2]
[378572010,1754914264550,-1000.0,0.00017,2]
[378572011,1754914264559,-412.0,0.00017,2]
[378572012,1754914264570,-1000.0,0.00017,2]
[378572013,1754914264586,-635.609809,0.00017013,2]
[378572014,1754914264596,-635.609809,0.00017013,2]
[378572015,1754914264605,-324.295891,0.00017013,2]
[378572016,1754914264616,-324.295891,0.00017013,2]
[378572017,1754914264625,-969.173732,0.00017013,2]
[378572018,1754914264634,-969.173732,0.00017013,2]
[378572019,1754914264768,-150.0,0.00017019,2]
[378572020,1754914264779,-150.0,0.00017033,2]
[378572021,1754914264789,-183.39,0.00017046,2]
[378572022,1754914264799,-150.0,0.00017088,2]
[378572023,1754914264808,-150.0,0.0001716,2]
[378572024,1754914264818,-600.0,0.0001716,2]
[378572025,1754914264827,-535.26,0.00017169,2]
[378572026,1754914264838,-681.76,0.00017169,2]
[378572027,1754914264847,-500.0,0.00017169,2]
[378572028,1754914264857,-799.49,0.00017169,2]
[378572029,1754914264867,-1695.93,0.00017169,2]
[378572030,1754914264877,-308.25455615,0.00017169,2]
[378572031,1754914264887,-3023.37,0.00017169,2]
[378572032,1754914264897,-1129.74,0.00017169,2]
[378572033,1754914264906,-745.49,0.00017169,2]
[378572034,1754914264916,-910.93,0.00017169,2]
[378572035,1754914264925,-400.0,0.00017169,2]
[378572036,1754914264935,-3968.67,0.00017169,2]
[378572037,1754914264945,-1022.12,0.00017169,2]
[378572038,1754914264954,-1231.07,0.00017169,2]
[378572039,1754914264963,-1816.84,0.00017169,2]
[378572040,1754914264972,-898.39,0.00017169,2]
[378572041,1754914264982,-4361.98,0.00017169,2]
[378572042,1754914264991,-3634.44,0.00017169,2]
[378572043,1754914265001,-2617.02,0.00017169,2]
[378572044,1754914265011,-1068.98,0.00017169,2]
[378572045,1754914265021,-1550.64,0.00017169,2]
[378572046,1754914265031,-512.32,0.00017169,2]